[Event "VI Sunway Sitges Open 2019"]
[Site "Sitges"]
[Date "2019.12.15"]
[Round "3.23"]
[White "Webb, Laurence E"]
[Black "Stefansson, Hannes"]
[Result "0-1"]
[ECO "A50"]
[WhiteElo "2296"]
[BlackElo "2538"]
[Annotator "ChessBase"]
[PlyCount "100"]
[EventDate "2019.12.13"]
[EventType "swiss"]
[EventCountry "ESP"]
[SourceTitle "playchess.com"]
[Source "ChessBase"]
[SourceQuality "1"]
[TimeControl "40/5400+30:1800+30"]

1. d4 {[%emt 0:00:00]} Nf6 {[%emt 0:00:00]} 2. c4 {[%emt 0:00:00]} b6 {[%emt 0:00:09]} 3. Nc3 {[%emt 0:01:08]} Bb7 {[%emt 0:00:21]} 4. f3 {[%emt 0:02:37]} d5 {[%emt 0:00:43]} 5. cxd5 {[%emt 0:00:45]} Nxd5 {[%emt 0:00:14]} 6. Nxd5 {[%emt 0:00:42]} Qxd5 {[%emt 0:00:54]} 7. e4 {[%emt 0:00:11]} Qd6 {[%emt 0:02:43]} 8. Ne2 {[%emt 0:02:10]} e5 {[%emt 0:02:26]} 9. Be3 {[%emt 0:02:18]} Nd7 {[%emt 0:02:10]} 10. Nc3 {[%emt 0:11:10]} a6 {[%emt 0:00:28]} 11. d5 {[%emt 0:04:30]} Qg6 {[%emt 0:11:09]} 12. Qc2 {[%emt 0:07:47]} Bc5 {[%emt 0:03:29]} 13. Bxc5 {[%emt 0:02:15]} Nxc5 {[%emt 0:00:06]} 14. b4 {[%emt 0:01:33]} Nd7 {[%emt 0:00:40]} 15. Bc4 {[%emt 0:03:16]} b5 {[%emt 0:10:02]} 16. Bd3 {[%emt 0:04:56]} Qd6 {[%emt 0:03:00]} 17. a3 {[%emt 0:02:24]} Rc8 {[%emt 0:01:16]} 18. Qd2 {[%emt 0:06:09]} Nb6 {[%emt 0:13:30]} 19. Qe3 {[%emt 0:09:17]} c5 {[%emt 0:01:38]} 20. dxc6 {[%emt 0:01:27]} Rxc6 {[%emt 0:01:43]} 21. Rc1 {[%emt 0:06:03]} O-O {[%emt 0:02:53]} 22. Kf2 {[%emt 0:02:38]} Rfc8 {[%emt 0:04:58]} 23. Ne2 {[%emt 0:03:43]} Na4 {[%emt 0:01:06]} 24. Rxc6 {[%emt 0:00:58]} Rxc6 {[%emt 0:01:43]} 25. Rd1 {[%emt 0:05:41]} Qd8 {[%emt 0:01:13]} 26. g3 {[%emt 0:05:45]} Rd6 {[%emt 0:04:00]} 27. Rd2 {[%emt 0:01:20]} Nb2 {[%emt 0:03:10]} 28. Rxb2 {[%emt 0:00:45]} Rxd3 {[%emt 0:00:06]} 29. Qc5 {[%emt 0:02:23]} Qf6 {[%emt 0:03:31]} 30. Ng1 {[%emt 0:03:12]} Bxe4 {[%emt 0:02:10]} 31. Ke2 {[%emt 0:01:49]} Rd5 {[%emt 0:01:10]} 32. Qe3 {[%emt 0:02:35]} Bd3+ {[%emt 0:01:40]} 33. Kf2 {[%emt 0:00:11]} e4 {[%emt 0:00:52]} 34. Rd2 {[%emt 0:02:05]} Re5 {[%emt 0:05:43]} 35. f4 {[%emt 0:01:55]} Re6 {[%emt 0:02:03]} 36. Nh3 {[%emt 0:01:16]} Qa1 {[%emt 0:00:45]} 37. g4 {[%emt 0:00:19]} h6 {[%emt 0:02:56]} 38. f5 {[%emt 0:00:41]} Rd6 {[%emt 0:04:54]} 39. Nf4 {[%emt 0:00:35]} Qxa3 {[%emt 0:00:21]} 40. Qc5 {[%emt 0:00:00]} Rd8 {[%emt 0:00:00]} 41. Nh5 {[%emt 0:07:25]} Qa1 {[%emt 0:02:23]} 42. Qe3 {[%emt 0:02:05]} Qe5 {[%emt 0:04:02]} 43. Nf4 {[%emt 0:01:29]} Qd6 {[%emt 0:01:02]} 44. Ra2 {[%emt 0:03:34]} Rc8 {[%emt 0:01:40]} 45. Kg2 {[%emt 0:03:06]} Rc3 {[%emt 0:02:37]} 46. Ne2 {[%emt 0:03:25]} Rc4 {[%emt 0:01:11]} 47. Qf4 {[%emt 0:05:49]} Qc6 {[%emt 0:02:06]} 48. Qb8+ {[%emt 0:00:54]} Kh7 {[%emt 0:00:08]} 49. Ng3 {[%emt 0:00:22]} e3+ {[%emt 0:00:21]} 50. Kh3 {[%emt 0:00:14]} Qf3 {[%emt 0:00:24]} 0-1

[Event "VI Sunway Sitges Open 2019"]
[Site "Sitges"]
[Date "2019.12.15"]
[Round "3.24"]
[White "Narayanan, Srinath"]
[Black "Ajay Krishna, S."]
[Result "1-0"]
[ECO "B53"]
[WhiteElo "2529"]
[BlackElo "2302"]
[Annotator "ChessBase"]
[PlyCount "133"]
[EventDate "2019.12.13"]
[EventType "swiss"]
[EventCountry "ESP"]
[SourceTitle "playchess.com"]
[Source "ChessBase"]
[SourceQuality "1"]
[TimeControl "40/5400+30:1800+30"]

1. e4 c5 2. Nf3 d6 3. d4 cxd4 4. Qxd4 Nc6 5. Qe3 e6 6. Be2 Be7 7. O-O {[%emt 0:07:44]} Nf6 {[%emt 0:09:53]} 8. Rd1 {[%emt 0:01:31]} O-O 9. h3 {[%emt 0:00:36]} Qc7 {[%emt 0:08:49]} 10. c4 {[%emt 0:00:30]} Ne5 {[%emt 0:00:30]} 11. b3 {[%emt 0:00:30]} a5 {[%emt 0:00:30]} 12. Nc3 {[%emt 0:00:30]} Bd7 {[%emt 0:00:30]} 13. Nd4 {[%emt 0:00:30]} a4 {[%emt 0:00:30]} 14. Ba3 {[%emt 0:00:30]} axb3 {[%emt 0:00:30]} 15. axb3 {[%emt 0:00:30]} Ng6 {[%emt 0:00:30]} 16. g3 {[%emt 0:00:30]} Rfd8 {[%emt 0:29:04]} 17. Ndb5 {[%emt 0:31:09]} Bxb5 {[%emt 0:00:38]} 18. Nxb5 {[%emt 0:00:02]} Qc6 {[%emt 0:01:08]} 19. Bf3 {[%emt 0:02:02]} e5 {[%emt 0:01:58]} 20. Bb4 {[%emt 0:20:30]} Ra6 {[%emt 0:05:43]} 21. Bg2 {[%emt 0:04:29]} Ne8 {[%emt 0:05:19]} 22. Na7 {[%emt 0:02:08]} Qc7 {[%emt 0:01:03]} 23. Nb5 {[%emt 0:00:05]} Qc6 {[%emt 0:00:21]} 24. Bf1 {[%emt 0:01:37]} Rda8 {[%emt 0:01:46]} 25. Rac1 {[%emt 0:02:15]} Qc8 {[%emt 0:00:30]} 26. Nc3 {[%emt 0:00:30]} h6 {[%emt 0:00:30]} 27. h4 {[%emt 0:00:30]} Qg4 {[%emt 0:18:09]} 28. Qe2 {[%emt 0:09:02]} Qe6 {[%emt 0:04:10]} 29. Kh2 {[%emt 0:00:57]} Bxh4 {[%emt 0:02:07]} 30. gxh4 {[%emt 0:00:11]} Qf6 {[%emt 0:00:44]} 31. Nd5 {[%emt 0:03:26]} Qxh4+ {[%emt 0:00:12]} 32. Bh3 {[%emt 0:01:51]} Nf6 {[%emt 0:05:00]} 33. Nxf6+ {[%emt 0:03:01]} Qxf6 {[%emt 0:00:07]} 34. Rc2 {[%emt 0:01:33]} Rb6 {[%emt 0:01:13]} 35. Bd2 {[%emt 0:01:00]} Rxb3 {[%emt 0:00:00]} 36. Be3 {[%emt 0:02:39]} Nh4 {[%emt 0:02:40]} 37. Qg4 {[%emt 0:00:21]} Nf3+ {[%emt 0:01:14]} 38. Kg2 {[%emt 0:00:53]} Nd4 {[%emt 0:01:31]} 39. Rcd2 {[%emt 0:01:27]} Ra5 {[%emt 0:02:40]} 40. Rd3 {[%emt 0:02:46]} Rxd3 {[%emt 0:00:00]} 41. Rxd3 {[%emt 0:00:03]} Rc5 {[%emt 0:14:18]} 42. Ra3 {[%emt 0:04:20]} Rxc4 {[%emt 0:00:00]} 43. Ra8+ {[%emt 0:09:55]} Kh7 {[%emt 0:00:17]} 44. Rb8 {[%emt 0:08:43]} Rc7 {[%emt 0:04:42]} 45. Qh5 {[%emt 0:03:24]} Qg6+ {[%emt 0:00:04]} 46. Qxg6+ {[%emt 0:01:39]} Kxg6 {[%emt 0:00:09]} 47. Rd8 {[%emt 0:00:00]} Rc6 {[%emt 0:01:28]} 48. Bd7 {[%emt 0:04:25]} Rc7 {[%emt 0:03:18]} 49. Ba4 {[%emt 0:05:44]} Ne6 {[%emt 0:04:53]} 50. Rxd6 {[%emt 0:00:00]} Kh7 {[%emt 0:01:35]} 51. Bb3 {[%emt 0:01:22]} Nf4+ {[%emt 0:02:13]} 52. Kf3 {[%emt 0:01:15]} g5 {[%emt 0:00:00]} 53. Kg4 {[%emt 0:00:00]} Kg7 {[%emt 0:00:00]} 54. Rb6 {[%emt 0:02:20]} Ng2 {[%emt 0:00:08]} 55. Bd2 {[%emt 0:02:41]} Nh4 {[%emt 0:03:59]} 56. Bd5 {[%emt 0:00:00]} Rc2 {[%emt 0:00:46]} 57. Be3 {[%emt 0:00:00]} Ng2 {[%emt 0:02:20]} 58. Rxb7 {[%emt 0:00:17]} Nxe3+ {[%emt 0:00:00]} 59. fxe3 {[%emt 0:00:00]} Rf2 {[%emt 0:00:20]} 60. Re7 {[%emt 0:01:06]} Kg6 {[%emt 0:00:00]} 61. Kg3 {[%emt 0:01:33]} Rf1 {[%emt 0:00:00]} 62. Kg2 {[%emt 0:00:07]} Rf6 {[%emt 0:00:00]} 63. Rxe5 {[%emt 0:00:00]} g4 {[%emt 0:00:54]} 64. Kg3 h5 {[%emt 0:02:40]} 65. Kh4 {[%emt 0:00:00]} Rf3 {[%emt 0:00:00]} 66. Rg5+ {[%emt 0:00:00]} Kf6 {[%emt 0:00:11]} 67. e5+ {[%emt 0:00:10]} 1-0

[Event "VI Sunway Sitges Open 2019"]
[Site "Sitges"]
[Date "2019.12.15"]
[Round "3.25"]
[White "Kiremitciyan, Ari"]
[Black "Krysa, Leandro"]
[Result "1/2-1/2"]
[ECO "E14"]
[WhiteElo "2270"]
[BlackElo "2527"]
[Annotator "ChessBase"]
[PlyCount "56"]
[EventDate "2019.12.13"]
[EventType "swiss"]
[EventCountry "ESP"]
[SourceTitle "playchess.com"]
[Source "ChessBase"]
[SourceQuality "1"]
[TimeControl "40/5400+30:1800+30"]

1. Nf3 d5 2. e3 {[%emt 0:01:39]} Nf6 3. c4 e6 4. Nc3 b6 5. b3 Bb7 6. Bb2 Nbd7 7. cxd5 exd5 8. d4 Bd6 9. Bd3 O-O 10. O-O a6 11. Ne2 Re8 12. Ng3 {[%emt 0:07:31]} Ne4 {[%emt 0:09:18]} 13. Rc1 {[%emt 0:27:08]} Nxg3 {[%emt 0:01:07]} 14. hxg3 {[%emt 0:00:00]} Nf6 {[%emt 0:15:22]} 15. Ne5 {[%emt 0:16:32]} c5 {[%emt 0:13:46]} 16. Nf3 {[%emt 0:02:22]} Ne4 {[%emt 0:03:30]} 17. dxc5 {[%emt 0:00:10]} bxc5 {[%emt 0:04:58]} 18. Rc2 {[%emt 0:06:20]} Qe7 {[%emt 0:07:22]} 19. Re1 {[%emt 0:04:42]} a5 {[%emt 0:06:04]} 20. Bb5 {[%emt 0:00:16]} Red8 {[%emt 0:04:38]} 21. Nd2 {[%emt 0:00:39]} Ng5 {[%emt 0:03:19]} 22. Qa1 {[%emt 0:02:04]} f6 {[%emt 0:03:22]} 23. Qd1 {[%emt 0:05:06]} f5 {[%emt 0:03:53]} 24. Qe2 {[%emt 0:05:43]} Ne6 {[%emt 0:02:07]} 25. Nf3 {[%emt 0:01:59]} Nc7 {[%emt 0:17:24]} 26. Ba4 {[%emt 0:02:17]} Ne6 {[%emt 0:00:39]} 27. Bb5 {[%emt 0:00:09]} Nc7 {[%emt 0:01:25]} 28. Ba4 {[%emt 0:00:25]} Ne6 {[%emt 0:00:54]} 1/2-1/2

[Event "VI Sunway Sitges Open 2019"]
[Site "Sitges"]
[Date "2019.12.15"]
[Round "3.34"]
[White "Mendonca, Leon Luke"]
[Black "Liang, Awonder"]
[Result "1/2-1/2"]
[ECO "D94"]
[WhiteElo "2398"]
[BlackElo "2593"]
[Annotator "ChessBase"]
[PlyCount "49"]
[EventDate "2019.12.13"]
[EventType "swiss"]
[EventCountry "ESP"]
[SourceTitle "playchess.com"]
[Source "ChessBase"]
[SourceQuality "1"]
[TimeControl "40/5400+30:1800+30"]

1. d4 {[%emt 0:04:29]} Nf6 {[%emt 0:00:16]} 2. c4 {[%emt 0:00:18]} g6 {[%emt 0:00:16]} 3. Nc3 {[%emt 0:00:07]} d5 {[%emt 0:00:34]} 4. Nf3 {[%emt 0:00:07]} Bg7 {[%emt 0:00:32]} 5. e3 {[%emt 0:00:32]} O-O {[%emt 0:03:13]} 6. cxd5 {[%emt 0:00:00]} Nxd5 7. Bc4 {[%emt 0:05:51]} e6 {[%emt 0:04:33]} 8. O-O {[%emt 0:00:09]} b6 {[%emt 0:06:22]} 9. e4 {[%emt 0:03:17]} Nxc3 {[%emt 0:00:00]} 10. bxc3 {[%emt 0:00:00]} Bb7 {[%emt 0:01:27]} 11. Re1 {[%emt 0:10:59]} c5 {[%emt 0:04:19]} 12. Bg5 {[%emt 0:00:00]} Qd7 {[%emt 0:01:15]} 13. Qd2 {[%emt 0:02:11]} cxd4 {[%emt 0:05:46]} 14. cxd4 {[%emt 0:01:38]} Nc6 {[%emt 0:06:40]} 15. Rad1 {[%emt 0:02:05]} Na5 {[%emt 0:02:14]} 16. Bd3 {[%emt 0:04:31]} Rfc8 {[%emt 0:04:23]} 17. Qf4 {[%emt 0:15:19]} Rc3 {[%emt 0:07:17]} 18. d5 {[%emt 0:30:31]} exd5 {[%emt 0:20:44]} 19. e5 {[%emt 0:06:55]} Qc7 {[%emt 0:01:03]} 20. Bf6 {[%emt 0:08:27]} Bxf6 {[%emt 0:09:22]} 21. Qxf6 {[%emt 0:00:32]} Re8 {[%emt 0:04:52]} 22. Qh4 {[%emt 0:00:00]} Kg7 {[%emt 0:00:00]} 23. Qf6+ {[%emt 0:00:00]} Kg8 {[%emt 0:05:07]} 24. Qh4 {[%emt 0:00:00]} Kg7 {[%emt 0:00:00]} 25. Qf6+ {[%emt 0:01:28]} 1/2-1/2

[Event "VI Sunway Sitges Open 2019"]
[Site "Sitges"]
[Date "2019.12.15"]
[Round "3.35"]
[White "Ayats Llobera, Gerard"]
[Black "Santos Latasa, Jaime"]
[Result "0-1"]
[ECO "A04"]
[WhiteElo "2383"]
[BlackElo "2585"]
[Annotator "ChessBase"]
[PlyCount "166"]
[EventDate "2019.12.13"]
[EventType "swiss"]
[EventCountry "ESP"]
[SourceTitle "playchess.com"]
[Source "ChessBase"]
[SourceQuality "1"]
[TimeControl "40/5400+30:1800+30"]

1. Nf3 {[%emt 0:00:00]} c5 {[%emt 0:00:00]} 2. b3 {[%emt 0:00:35]} d6 {[%emt 0:00:52]} 3. d4 {[%emt 0:05:07]} cxd4 {[%emt 0:00:19]} 4. Nxd4 {[%emt 0:00:03]} Nf6 {[%emt 0:00:32]} 5. Bb2 {[%emt 0:05:31]} Nc6 {[%emt 0:06:15]} 6. g3 {[%emt 0:02:33]} Qa5+ {[%emt 0:00:52]} 7. Qd2 {[%emt 0:08:31]} Qd5 {[%emt 0:01:57]} 8. f3 {[%emt 0:00:49]} Nxd4 {[%emt 0:01:31]} 9. Bxd4 {[%emt 0:02:41]} e5 {[%emt 0:01:40]} 10. Bb2 {[%emt 0:00:52]} Qc5 {[%emt 0:03:47]} 11. c4 {[%emt 0:10:14]} Be7 {[%emt 0:00:45]} 12. Nc3 {[%emt 0:01:55]} O-O {[%emt 0:00:13]} 13. e4 {[%emt 0:07:34]} a6 {[%emt 0:02:08]} 14. Bd3 {[%emt 0:01:55]} Bd7 {[%emt 0:03:26]} 15. a4 {[%emt 0:04:50]} Be6 {[%emt 0:03:02]} 16. Qf2 {[%emt 0:06:24]} Qb4 {[%emt 0:02:59]} 17. Qc2 {[%emt 0:06:02]} Nd7 {[%emt 0:02:45]} 18. Ba3 {[%emt 0:03:00]} Qb6 {[%emt 0:00:52]} 19. Rb1 {[%emt 0:02:45]} Nc5 {[%emt 0:10:09]} 20. Bxc5 {[%emt 0:05:24]} Qxc5 {[%emt 0:02:02]} 21. Qf2 {[%emt 0:00:02]} Qb4 {[%emt 0:00:26]} 22. Qd2 {[%emt 0:00:45]} Qb6 {[%emt 0:02:41]} 23. Qf2 {[%emt 0:01:12]} Bd8 {[%emt 0:05:59]} 24. Qxb6 {[%emt 0:02:34]} Bxb6 {[%emt 0:01:15]} 25. Ke2 {[%emt 0:00:02]} Bd4 {[%emt 0:00:46]} 26. Nd5 {[%emt 0:00:41]} a5 {[%emt 0:01:04]} 27. Nc7 {[%emt 0:14:36]} Rac8 {[%emt 0:00:35]} 28. Nxe6 {[%emt 0:00:06]} fxe6 {[%emt 0:00:04]} 29. Rbf1 {[%emt 0:00:48]} Rf6 {[%emt 0:01:21]} 30. Kd2 {[%emt 0:05:05]} Rcf8 {[%emt 0:02:08]} 31. Be2 {[%emt 0:00:09]} Kf7 {[%emt 0:00:29]} 32. Rb1 {[%emt 0:02:27]} Bc5 {[%emt 0:00:16]} 33. Rhf1 {[%emt 0:00:11]} Ke7 {[%emt 0:00:09]} 34. Rbd1 {[%emt 0:00:41]} Kd7 {[%emt 0:00:27]} 35. Kc2 {[%emt 0:00:12]} Kc6 {[%emt 0:00:13]} 36. Rd3 {[%emt 0:00:35]} Rh6 {[%emt 0:01:40]} 37. Rh1 {[%emt 0:00:22]} g5 {[%emt 0:02:18]} 38. Rdd1 {[%emt 0:00:24]} Bd4 {[%emt 0:00:29]} 39. Rdf1 {[%emt 0:01:03]} Kc5 {[%emt 0:00:37]} 40. h3 {[%emt 0:00:00]} Rg6 {[%emt 0:00:00]} 41. Rh2 {[%emt 0:21:18]} h5 {[%emt 0:06:10]} 42. Rd1 {[%emt 0:05:51]} Rgf6 {[%emt 0:01:34]} 43. Rd3 {[%emt 0:01:36]} Rg8 {[%emt 0:00:34]} 44. Kd2 {[%emt 0:00:34]} Kb4 {[%emt 0:00:46]} 45. Rh1 {[%emt 0:00:33]} Rgf8 {[%emt 0:01:00]} 46. Rc1 {[%emt 0:00:31]} Kc5 {[%emt 0:00:16]} 47. Rh1 {[%emt 0:03:47]} Bf2 {[%emt 0:00:41]} 48. g4 {[%emt 0:00:15]} Rh8 {[%emt 0:00:12]} 49. Rf1 {[%emt 0:00:23]} Bd4 {[%emt 0:00:12]} 50. gxh5 {[%emt 0:01:00]} Rf4 {[%emt 0:00:13]} 51. Rd1 {[%emt 0:00:30]} Rxh5 {[%emt 0:00:28]} 52. Rh1 {[%emt 0:00:23]} Rh6 {[%emt 0:00:28]} 53. Kc2 {[%emt 0:00:27]} Kc6 {[%emt 0:03:06]} 54. Rdd1 {[%emt 0:00:22]} b6 {[%emt 0:00:35]} 55. Rb1 {[%emt 0:00:41]} Kc5 {[%emt 0:01:27]} 56. Rbd1 {[%emt 0:00:17]} Rh8 {[%emt 0:00:08]} 57. Rd3 {[%emt 0:00:21]} Kb4 {[%emt 0:00:18]} 58. Kd2 {[%emt 0:00:34]} Rfh4 {[%emt 0:00:50]} 59. Bf1 {[%emt 0:00:09]} Rf8 {[%emt 0:00:13]} 60. Kc2 {[%emt 0:00:37]} Rf7 {[%emt 0:01:36]} 61. Bg2 {[%emt 0:00:52]} Kc5 {[%emt 0:00:19]} 62. Re1 {[%emt 0:00:25]} Rhf4 {[%emt 0:00:39]} 63. Re2 {[%emt 0:00:31]} Kc6 {[%emt 0:00:14]} 64. Kd2 {[%emt 0:00:30]} Bc5 {[%emt 0:00:07]} 65. Kc2 {[%emt 0:00:35]} Kd7 {[%emt 0:00:10]} 66. Kd1 {[%emt 0:00:43]} Ke7 {[%emt 0:00:07]} 67. Re1 {[%emt 0:00:32]} R7f6 {[%emt 0:00:17]} 68. Rf1 {[%emt 0:00:23]} Kf7 {[%emt 0:00:13]} 69. Ke2 {[%emt 0:00:10]} Kg6 {[%emt 0:00:05]} 70. Rfd1 {[%emt 0:00:42]} Kh5 {[%emt 0:01:37]} 71. Rxd6 {[%emt 0:00:25]} Bxd6 {[%emt 0:01:23]} 72. Rxd6 {[%emt 0:00:01]} Kh4 {[%emt 0:00:07]} 73. Kf2 {[%emt 0:01:06]} Rxe4 {[%emt 0:00:26]} 74. Rd8 {[%emt 0:00:01]} Kh5 {[%emt 0:00:16]} 75. Rh8+ {[%emt 0:00:28]} Kg6 {[%emt 0:00:10]} 76. Rb8 {[%emt 0:00:12]} Rd4 {[%emt 0:02:33]} 77. Rxb6 {[%emt 0:00:44]} Rd2+ {[%emt 0:00:16]} 78. Kg3 {[%emt 0:00:38]} Rd3 {[%emt 0:00:26]} 79. Kh2 {[%emt 0:00:33]} Rc3 {[%emt 0:02:08]} 80. Rb5 {[%emt 0:00:28]} e4 {[%emt 0:00:25]} 81. fxe4 {[%emt 0:00:19]} Rf2 {[%emt 0:00:06]} 82. Kg1 {[%emt 0:00:23]} Rb2 {[%emt 0:00:08]} 83. Bf1 {[%emt 0:01:15]} Rg3+ {[%emt 0:00:31]} 0-1

[Event "VI Sunway Sitges Open 2019"]
[Site "Sitges"]
[Date "2019.12.15"]
[Round "3.36"]
[White "Puranik, Abhimanyu"]
[Black "Gorshtein, Ido"]
[Result "1-0"]
[ECO "B10"]
[WhiteElo "2580"]
[BlackElo "2372"]
[Annotator "ChessBase"]
[PlyCount "99"]
[EventDate "2019.12.13"]
[EventType "swiss"]
[EventCountry "ESP"]
[SourceTitle "playchess.com"]
[Source "ChessBase"]
[SourceQuality "1"]
[TimeControl "40/5400+30:1800+30"]

1. e4 {[%emt 0:00:37]} c6 {[%emt 0:00:00]} 2. Nf3 {[%emt 0:00:04]} d5 {[%emt 0:00:00]} 3. d3 {[%emt 0:00:07]} dxe4 {[%emt 0:00:00]} 4. dxe4 {[%emt 0:00:04]} Qxd1+ {[%emt 0:00:06]} 5. Kxd1 {[%emt 0:00:02]} Nf6 {[%emt 0:00:06]} 6. Nfd2 {[%emt 0:00:41]} g5 {[%emt 0:00:14]} 7. a4 {[%emt 0:19:39]} Rg8 {[%emt 0:02:16]} 8. Na3 {[%emt 0:09:13]} g4 {[%emt 0:05:07]} 9. Bd3 {[%emt 0:05:51]} Be6 {[%emt 0:04:07]} 10. Ndc4 {[%emt 0:13:54]} Na6 {[%emt 0:11:25]} 11. Be3 {[%emt 0:00:41]} Nb4 {[%emt 0:00:42]} 12. Ke2 {[%emt 0:02:18]} Nh5 {[%emt 0:04:27]} 13. Rhd1 {[%emt 0:03:54]} f5 {[%emt 0:06:14]} 14. exf5 {[%emt 0:01:26]} Bd5 {[%emt 0:02:43]} 15. Kf1 {[%emt 0:00:34]} Nxd3 {[%emt 0:02:49]} 16. Rxd3 {[%emt 0:00:18]} Ng7 {[%emt 0:04:44]} 17. Re1 {[%emt 0:04:21]} Nxf5 {[%emt 0:02:35]} 18. Bc5 {[%emt 0:04:20]} b6 {[%emt 0:16:08]} 19. Bb4 {[%emt 0:04:06]} O-O-O {[%emt 0:02:12]} 20. Ne3 {[%emt 0:10:18]} Nxe3+ {[%emt 0:00:44]} 21. Rexe3 {[%emt 0:02:56]} c5 {[%emt 0:00:54]} 22. Bc3 {[%emt 0:00:13]} c4 {[%emt 0:02:05]} 23. Rd4 {[%emt 0:01:59]} e6 {[%emt 0:00:52]} 24. Re2 {[%emt 0:09:41]} Bc5 {[%emt 0:03:41]} 25. Rf4 {[%emt 0:00:22]} Rdf8 {[%emt 0:01:49]} 26. Rxf8+ {[%emt 0:00:17]} Rxf8 {[%emt 0:00:07]} 27. Rd2 {[%emt 0:03:45]} Rf4 {[%emt 0:02:33]} 28. g3 {[%emt 0:00:46]} Rf3 {[%emt 0:00:52]} 29. Nb1 {[%emt 0:01:20]} Bc6 {[%emt 0:03:25]} 30. a5 {[%emt 0:00:10]} b5 {[%emt 0:01:12]} 31. Bd4 {[%emt 0:00:10]} Rf5 {[%emt 0:01:32]} 32. Bxc5 {[%emt 0:00:38]} Rxc5 {[%emt 0:00:02]} 33. Rd4 {[%emt 0:00:41]} Rd5 {[%emt 0:04:51]} 34. Rxd5 {[%emt 0:00:16]} exd5 {[%emt 0:00:02]} 35. Nc3 {[%emt 0:00:50]} b4 {[%emt 0:04:37]} 36. Na2 {[%emt 0:00:36]} b3 {[%emt 0:00:03]} 37. cxb3 {[%emt 0:00:03]} cxb3 {[%emt 0:00:02]} 38. Nb4 {[%emt 0:00:55]} Bb5+ {[%emt 0:00:56]} 39. Ke1 {[%emt 0:00:02]} d4 {[%emt 0:00:24]} 40. Nd5 {[%emt 0:00:00]} Kb7 {[%emt 0:00:00]} 41. Nf6 {[%emt 0:07:28]} Ka6 {[%emt 0:01:46]} 42. Nxg4 {[%emt 0:01:03]} Kxa5 {[%emt 0:00:55]} 43. f4 {[%emt 0:04:32]} Kb4 {[%emt 0:02:39]} 44. f5 {[%emt 0:04:15]} a5 {[%emt 0:05:48]} 45. f6 {[%emt 0:01:53]} Be8 {[%emt 0:00:03]} 46. Ne5 {[%emt 0:00:19]} a4 {[%emt 0:00:05]} 47. f7 {[%emt 0:01:32]} Bxf7 {[%emt 0:00:02]} 48. Nxf7 {[%emt 0:00:01]} a3 {[%emt 0:00:09]} 49. bxa3+ {[%emt 0:00:04]} Kc3 {[%emt 0:00:02]} 50. Ng5 {[%emt 0:00:41]} 1-0

[Event "VI Sunway Sitges Open 2019"]
[Site "Sitges"]
[Date "2019.12.15"]
[Round "3.37"]
[White "Erigaisi Arjun"]
[Black "Lopez Mulet, Inigo"]
[Result "1-0"]
[ECO "A13"]
[WhiteElo "2544"]
[BlackElo "2382"]
[Annotator "ChessBase"]
[PlyCount "67"]
[EventDate "2019.12.13"]
[EventType "swiss"]
[EventCountry "ESP"]
[SourceTitle "playchess.com"]
[Source "ChessBase"]
[SourceQuality "1"]
[TimeControl "40/5400+30:1800+30"]

1. Nf3 {[%emt 0:03:40]} d5 {[%emt 0:00:00]} 2. c4 {[%emt 0:00:06]} e6 {[%emt 0:00:08]} 3. g3 {[%emt 0:00:06]} Nf6 {[%emt 0:00:15]} 4. b3 {[%emt 0:00:05]} d4 {[%emt 0:01:13]} 5. Bb2 {[%emt 0:00:35]} c5 {[%emt 0:00:57]} 6. e3 {[%emt 0:00:18]} Nc6 {[%emt 0:00:13]} 7. exd4 {[%emt 0:00:07]} cxd4 {[%emt 0:00:04]} 8. Bg2 {[%emt 0:00:05]} Bc5 {[%emt 0:03:04]} 9. O-O {[%emt 0:00:45]} O-O {[%emt 0:00:17]} 10. Re1 {[%emt 0:00:10]} Re8 {[%emt 0:03:26]} 11. Ne5 {[%emt 0:02:50]} Nxe5 12. Rxe5 {[%emt 0:00:08]} Nd7 {[%emt 0:12:41]} 13. Re1 {[%emt 0:01:31]} e5 {[%emt 0:00:18]} 14. a3 {[%emt 0:05:04]} a5 {[%emt 0:01:24]} 15. d3 {[%emt 0:00:15]} f5 {[%emt 0:15:47]} 16. f4 {[%emt 0:14:02]} exf4 {[%emt 0:11:13]} 17. gxf4 {[%emt 0:00:30]} Nf6 {[%emt 0:01:25]} 18. Nd2 {[%emt 0:01:21]} Rxe1+ {[%emt 0:04:35]} 19. Qxe1 {[%emt 0:00:09]} Qc7 {[%emt 0:00:13]} 20. Qh4 {[%emt 0:10:07]} Bd7 {[%emt 0:06:16]} 21. Nf3 {[%emt 0:16:15]} Qb6 {[%emt 0:02:59]} 22. Ne5 {[%emt 0:02:18]} Qxb3 {[%emt 0:04:49]} 23. Qf2 {[%emt 0:00:14]} Qb6 {[%emt 0:13:34]} 24. Bd5+ {[%emt 0:01:44]} Nxd5 {[%emt 0:02:26]} 25. Nxd7 {[%emt 0:00:41]} Qg6+ {[%emt 0:01:10]} 26. Qg3 {[%emt 0:02:26]} Qd6 {[%emt 0:10:01]} 27. Nxc5 {[%emt 0:00:36]} Nxf4 {[%emt 0:00:21]} 28. Re1 {[%emt 0:00:30]} Qh6 {[%emt 0:04:33]} 29. Bxd4 {[%emt 0:01:02]} Rd8 {[%emt 0:00:36]} 30. Be3 {[%emt 0:00:25]} Nh3+ {[%emt 0:00:08]} 31. Kg2 {[%emt 0:00:08]} f4 {[%emt 0:00:50]} 32. Qxh3 {[%emt 0:00:08]} Qg6+ {[%emt 0:00:27]} 33. Kh1 {[%emt 0:00:29]} fxe3 {[%emt 0:00:05]} 34. Qxe3 {[%emt 0:00:08]} 1-0